[Event "25th Zadar Open 2018"]
[Site "Zadar"]
[Date "2018.12.22"]
[Round "9.5"]
[White "Omelja, Artem"]
[Black "Rezan, Sasa"]
[Result "1-0"]
[ECO "A17"]
[WhiteElo "2457"]
[BlackElo "2421"]
[Annotator "ChessBase"]
[PlyCount "141"]
[EventDate "2018.12.15"]
[EventType "swiss"]
[EventCountry "CRO"]
[SourceTitle "playchess.com"]
[Source "ChessBase"]
[SourceQuality "1"]
[TimeControl "40/5400+30:1800+30"]

1. Nf3 {[%emt 0:06:30]} Nf6 {[%emt 0:00:30]} 2. c4 {[%emt 0:00:00]} e6 {[%emt 0:00:30]} 3. Nc3 {[%emt 0:00:00]} d5 {[%emt 0:00:00]} 4. e3 {[%emt 0:00:30]} a6 {[%emt 0:00:00]} 5. b3 {[%emt 0:02:30]} c5 {[%emt 0:02:30]} 6. Bb2 {[%emt 0:03:30]} Nc6 {[%emt 0:00:30]} 7. cxd5 {[%emt 0:00:30]} exd5 {[%emt 0:01:30]} 8. d4 {[%emt 0:00:30]} cxd4 {[%emt 0:03:30]} 9. Nxd4 {[%emt 0:00:30]} Bd7 {[%emt 0:10:30]} 10. Be2 {[%emt 0:00:30]} Bc5 {[%emt 0:09:30]} 11. Nxc6 {[%emt 0:01:30]} Bxc6 {[%emt 0:01:30]} 12. Bf3 {[%emt 0:00:30]} O-O {[%emt 0:03:30]} 13. O-O {[%emt 0:00:30]} Qd6 {[%emt 0:12:30]} 14. Qd3 {[%emt 0:06:30]} d4 {[%emt 0:10:30]} 15. exd4 {[%emt 0:03:30]} Bxd4 {[%emt 0:00:00]} 16. Ne4 {[%emt 0:06:30]} Bxe4 {[%emt 0:11:00]} 17. Bxe4 {[%emt 0:00:30]} Nxe4 {[%emt 0:01:30]} 18. Bxd4 {[%emt 0:01:30]} Nc5 {[%emt 0:03:30]} 19. Qe3 {[%emt 0:02:30]} Ne6 {[%emt 0:00:00]} 20. Be5 {[%emt 0:01:30]} Qe7 {[%emt 0:02:00]} 21. Rfe1 {[%emt 0:07:30]} Rfe8 {[%emt 0:02:30]} 22. Qg3 {[%emt 0:02:30]} f6 {[%emt 0:02:30]} 23. Bc3 {[%emt 0:11:30]} Qf7 {[%emt 0:00:30]} 24. h4 {[%emt 0:01:30]} Nf8 {[%emt 0:04:11]} 25. Qf3 {[%emt 0:05:30]} Rad8 {[%emt 0:03:47]} 26. Rxe8 {[%emt 0:06:30]} Rxe8 {[%emt 0:00:05]} 27. Rd1 {[%emt 0:01:30]} h6 {[%emt 0:02:36]} 28. g3 {[%emt 0:01:30]} Ng6 {[%emt 0:01:34]} 29. Kg2 {[%emt 0:04:30]} Nf8 {[%emt 0:02:50]} 30. Rd6 {[%emt 0:01:30]} Ne6 {[%emt 0:03:05]} 31. Qf5 {[%emt 0:05:27]} Nf8 {[%emt 0:01:52]} 32. Qg4 {[%emt 0:07:26]} Ne6 {[%emt 0:00:28]} 33. Rb6 {[%emt 0:01:10]} Kh8 {[%emt 0:01:22]} 34. Qf5 {[%emt 0:04:07]} Qc7 {[%emt 0:01:14]} 35. Rxe6 {[%emt 0:00:43]} Rxe6 {[%emt 0:00:04]} 36. Qxe6 {[%emt 0:00:06]} Qxc3 {[%emt 0:00:01]} 37. Qe8+ {[%emt 0:00:11]} Kh7 {[%emt 0:00:03]} 38. Qe4+ {[%emt 0:00:09]} Kh8 {[%emt 0:00:36]} 39. Qe8+ {[%emt 0:00:21]} Kh7 {[%emt 0:00:03]} 40. Qe4+ {[%emt 0:00:00]} Kh8 {[%emt 0:00:00]} 41. Qxb7 {[%emt 0:00:50]} Qd3 {[%emt 0:10:09]} 42. Qc8+ {[%emt 0:01:30]} Kh7 {[%emt 0:00:30]} 43. Qc4 {[%emt 0:00:30]} Qd6 {[%emt 0:00:30]} 44. b4 {[%emt 0:01:30]} Qb6 {[%emt 0:03:30]} 45. a4 {[%emt 0:03:30]} Qb7+ {[%emt 0:03:30]} 46. Kg1 {[%emt 0:00:30]} f5 {[%emt 0:00:30]} 47. b5 {[%emt 0:01:30]} axb5 {[%emt 0:00:00]} 48. axb5 {[%emt 0:00:30]} f4 {[%emt 0:02:11]} 49. Qc6 {[%emt 0:09:30]} Qe7 {[%emt 0:02:14]} 50. Qc2+ {[%emt 0:00:30]} g6 {[%emt 0:00:24]} 51. b6 {[%emt 0:07:47]} Qb4 {[%emt 0:08:30]} 52. Qc7+ {[%emt 0:02:28]} Kg8 {[%emt 0:00:31]} 53. gxf4 {[%emt 0:04:34]} Qe1+ {[%emt 0:02:29]} 54. Kg2 {[%emt 0:00:11]} Qe4+ {[%emt 0:00:17]} 55. Kf1 {[%emt 0:02:21]} Qh1+ {[%emt 0:04:04]} 56. Ke2 {[%emt 0:00:10]} Qe4+ {[%emt 0:00:01]} 57. Kd2 {[%emt 0:00:16]} Qd4+ {[%emt 0:00:23]} 58. Kc1 {[%emt 0:00:17]} Qa1+ {[%emt 0:00:31]} 59. Kc2 {[%emt 0:00:12]} Qa4+ {[%emt 0:01:20]} 60. Kc3 {[%emt 0:00:16]} Qa3+ {[%emt 0:01:35]} 61. Kc4 {[%emt 0:00:18]} Qa4+ {[%emt 0:00:59]} 62. Kc5 {[%emt 0:00:20]} Qa5+ {[%emt 0:00:42]} 63. Kc6 {[%emt 0:00:24]} Qa8+ {[%emt 0:01:19]} 64. b7 {[%emt 0:01:23]} Qa4+ {[%emt 0:00:30]} 65. Kb6 {[%emt 0:00:33]} Qb4+ {[%emt 0:00:18]} 66. Ka7 {[%emt 0:00:15]} Qa4+ {[%emt 0:00:08]} 67. Kb8 {[%emt 0:00:11]} h5 {[%emt 0:00:44]} 68. Kc8 {[%emt 0:01:20]} Qa6 {[%emt 0:00:20]} 69. Kd7 {[%emt 0:01:03]} Qa4+ {[%emt 0:00:40]} 70. Qc6 {[%emt 0:00:31]} Qd4+ {[%emt 0:01:11]} 71. Ke8 {[%emt 0:00:42]} 1-0

[Event "25th Zadar Open 2018"]
[Site "Zadar"]
[Date "2018.12.22"]
[Round "9.10"]
[White "Loncar, Robert"]
[Black "Kurayan, Ruslan"]
[Result "1-0"]
[ECO "A65"]
[WhiteElo "2397"]
[BlackElo "2391"]
[Annotator "NA RC"]
[PlyCount "103"]
[EventDate "2018.12.15"]
[EventType "swiss"]
[EventCountry "CRO"]
[SourceTitle "playchess.com"]
[Source "ChessBase"]
[SourceQuality "1"]
[TimeControl "40/5400+30:1800+30"]

1. d4 {[%emt 0:00:30]} Nf6 {[%emt 0:02:30]} 2. c4 {[%emt 0:03:30]} g6 {[%emt 0:03:30]} 3. Nc3 {[%emt 0:00:30]} Bg7 {[%emt 0:00:00]} 4. e4 {[%emt 0:00:30]} d6 {[%emt 0:00:00]} 5. h3 {[%emt 0:00:00]} O-O {[%emt 0:00:30]} 6. Bg5 {[%emt 0:00:00]} a6 {[%emt 0:00:30]} 7. Bd3 {[%emt 0:06:30]} c5 {[%emt 0:15:30]} 8. d5 {[%emt 0:01:30]} e6 {[%emt 0:14:30]} 9. a4 {[%emt 0:13:30]} exd5 {[%emt 0:06:30]} 10. cxd5 {[%emt 0:01:30]} Nbd7 {[%emt 0:08:30] LiveBook: 17 Games} 11. Nf3 {[%emt 0:02:30]} Rb8 $146 {[%emt 0:06:30] A65: Modern Benoni: 6 e4} (11... Re8 12. O-O Qe7 13. Nd2 h6 14. Be3 Ne5 15. Be2 g5 16. f4 gxf4 17. Bxf4 Nfd7 18. Bh5 Rf8 19. Bh2 Rb8 20. Qe2 {0-1 (36) Aczel,G (2549)-Indjic,A (2611) Budapest 2017}) 12. O-O {[%emt 0:00:30]} h6 {[%emt 0:03:30]} 13. Bf4 {[%emt 0:01:30]} Qe7 {[%emt 0:00:30]} 14. Re1 {[%emt 0:09:30]} Nh5 {[%emt 0:09:30]} 15. Be3 {[%emt 0:00:30]} Qf6 {[%emt 0:05:30]} 16. Qd2 {[%emt 0:05:30]} g5 {[%emt 0:00:45]} 17. e5 {[%emt 0:09:30]} dxe5 {[%emt 0:02:46]} 18. Ne4 {[%emt 0:00:30]} Qd8 {[%emt 0:06:35]} 19. Nxc5 {[%emt 0:01:30]} Nxc5 {[%emt 0:02:50]} 20. Bxc5 {[%emt 0:00:30]} Re8 {[%emt 0:00:00]} 21. Rad1 {[%emt 0:09:30]} b6 {[%emt 0:00:53]} 22. Bb4 {[%emt 0:00:30]} Nf4 {[%emt 0:00:43]} 23. Bb1 {[%emt 0:04:30]} a5 {[%emt 0:03:39]} 24. Bc3 {[%emt 0:00:00]} Qd6 {[%emt 0:00:54]} 25. Qc2 {[%emt 0:12:51]} f5 {[%emt 0:00:15]} 26. g3 {[%emt 0:04:29]} Nxh3+ {[%emt 0:02:00]} 27. Kh2 {[%emt 0:00:54]} g4 {[%emt 0:01:05]} 28. Nd4 {[%emt 0:03:34]} Ng5 {[%emt 0:02:46]} 29. f4 {[%emt 0:05:15]} exd4 {[%emt 0:00:55]} 30. Rxe8+ {[%emt 0:00:08]} Kf7 {[%emt 0:00:07]} 31. Rxc8 {[%emt 0:00:16]} Nf3+ {[%emt 0:01:10]} 32. Kg2 {[%emt 0:00:04]} Nh4+ {[%emt 0:00:28]} 33. gxh4 {[%emt 0:00:19]} Qxd5+ {[%emt 0:00:04]} 34. Kg1 {[%emt 0:00:32]} Rxc8 {[%emt 0:00:16]} 35. Ba2 {[%emt 0:01:57]} Qxa2 {[%emt 0:00:34]} 36. Qxf5+ {[%emt 0:00:02]} Bf6 {[%emt 0:00:51]} 37. Qxc8 {[%emt 0:01:09]} dxc3 {[%emt 0:00:22]} 38. Rd7+ {[%emt 0:01:13]} Kg6 {[%emt 0:00:07]} 39. Qe8+ {[%emt 0:00:48]} Kf5 {[%emt 0:00:01]} 40. Qh5+ {[%emt 0:00:00]} Bg5 {[%emt 0:00:00]} 41. Rf7+ {[%emt 0:03:29]} Ke4 {[%emt 0:02:54]} 42. Qg6+ {[%emt 0:00:30]} Ke3 {[%emt 0:04:30]} 43. Qxb6+ {[%emt 0:03:30]} Ke2 {[%emt 0:04:30]} 44. Qf2+ {[%emt 0:00:30]} Kd3 {[%emt 0:00:00]} 45. Rd7+ {[%emt 0:00:00]} Kc4 {[%emt 0:00:00]} 46. b3+ {[%emt 0:02:00]} Kxb3 {[%emt 0:00:30]} 47. Rb7+ {[%emt 0:00:30]} Ka3 {[%emt 0:00:00]} 48. Qc5+ {[%emt 0:00:30]} Kxa4 {[%emt 0:00:00]} 49. Qc6+ {[%emt 0:00:30]} Ka3 {[%emt 0:00:30]} 50. Qxc3+ {[%emt 0:00:30]} Ka4 {[%emt 0:00:00]} 51. hxg5 {[%emt 0:01:30]} hxg5 {[%emt 0:00:00]} 52. Qxa5+ {[%emt 0:00:30]} 1-0

[Event "25th Zadar Open 2018"]
[Site "Zadar"]
[Date "2018.12.22"]
[Round "9.11"]
[White "Bukal, Vladimir Jr."]
[Black "Nester, Ihor"]
[Result "1/2-1/2"]
[ECO "A80"]
[WhiteElo "2390"]
[BlackElo "2337"]
[Annotator "NA"]
[PlyCount "124"]
[EventDate "2018.12.15"]
[EventType "swiss"]
[EventCountry "CRO"]
[SourceTitle "playchess.com"]
[Source "ChessBase"]
[SourceQuality "1"]
[TimeControl "40/5400+30:1800+30"]

1. d4 {[%emt 0:00:30]} f5 {[%emt 0:04:30]} 2. Bf4 {[%emt 0:00:00]} Nf6 {[%emt 0:00:30]} 3. e3 {[%emt 0:00:00]} g6 {[%emt 0:00:00]} 4. h4 {[%emt 0:00:30]} h6 {[%emt 0:03:00] LiveBook: 21 Games A80: Dutch Defence: Unusual White second moves} 5. Qf3 {[%emt 0:02:30]} d6 {[%emt 0:00:00]} 6. Nc3 {[%emt 0:01:30]} Bg7 {[%emt 0:01:00]} (6... c6 7. O-O-O Be6 8. Bd3 Qa5 9. a3 Nbd7 10. e4 O-O-O 11. Nge2 fxe4 12. Nxe4 {½-½ (40) Sjugirov,S (2650)-Nepomniachtchi,I (2729) Riadh 2017}) 7. Bc4 {[%emt 0:12:30]} e6 {[%emt 0:06:30]} 8. O-O-O $146 {[%emt 0:04:30]} ({Predecessor:} 8. Qg3 Kf7 9. Be2 Nc6 10. O-O-O Qe7 11. Nh3 {0-1 (44) Bortnyk,O (2600)-Gasanov,E (2482) Omelnyk 2017}) 8... Qe7 {[%emt 0:02:30]} 9. Qg3 {[%emt 0:07:30]} (9. Nge2 $14) 9... Qf7 {[%emt 0:04:30]} 10. Nf3 {[%emt 0:01:30]} Nc6 {[%emt 0:21:30]} 11. h5 {[%emt 0:19:30]} Nxh5 {[%emt 0:21:30]} 12. Rxh5 {[%emt 0:04:30]} gxh5 {[%emt 0:00:00]} 13. Nh4 {[%emt 0:00:30]} Bf6 {[%emt 0:05:00] [#]} (13... Rg8 $17 14. Qf3 Ne7) 14. Nxf5 $1 {[%emt 0:03:30]} Bg5 {[%emt 0:02:30]} 15. Nb5 {[%emt 0:04:30]} Bxf4 {[%emt 0:01:30]} 16. exf4 {[%emt 0:08:30]} Kd8 {[%emt 0:08:06]} 17. Qh4+ {[%emt 0:02:30]} Ne7 {[%emt 0:06:38]} 18. Ne3 {[%emt 0:00:30]} Rf8 {[%emt 0:02:23]} 19. g3 {[%emt 0:00:30]} Bd7 {[%emt 0:00:38]} 20. Nc3 {[%emt 0:01:30]} d5 {[%emt 0:01:21]} 21. Be2 {[%emt 0:00:30]} Be8 {[%emt 0:00:49]} 22. Rh1 {[%emt 0:03:43]} Qg7 {[%emt 0:03:28]} 23. Bxh5 {[%emt 0:09:58]} Kd7 {[%emt 0:01:36]} 24. Bg4 {[%emt 0:01:03]} c6 {[%emt 0:01:07]} 25. Qxh6 {[%emt 0:04:41]} Qxh6 {[%emt 0:00:17]} 26. Rxh6 {[%emt 0:00:02]} Bg6 {[%emt 0:00:28]} 27. Kd2 {[%emt 0:03:04]} Rh8 {[%emt 0:00:16]} 28. Rxh8 {[%emt 0:00:08]} Rxh8 {[%emt 0:00:02]} 29. Bf3 {[%emt 0:01:45]} Bf5 {[%emt 0:01:39]} 30. Ncd1 {[%emt 0:00:47]} Nc8 {[%emt 0:00:43]} 31. Ng4 {[%emt 0:02:09]} Bxg4 {[%emt 0:00:15]} 32. Bxg4 {[%emt 0:00:01]} Nd6 {[%emt 0:00:10]} 33. Ne3 {[%emt 0:00:47]} Ne4+ {[%emt 0:00:53]} 34. Ke1 {[%emt 0:00:11]} Rh2 {[%emt 0:00:28]} 35. f5 {[%emt 0:00:11]} exf5 {[%emt 0:00:51]} 36. Bxf5+ {[%emt 0:00:09]} Ke7 {[%emt 0:00:16]} 37. Bxe4 {[%emt 0:01:10]} dxe4 {[%emt 0:00:01]} 38. Ke2 {[%emt 0:00:00]} Ke6 {[%emt 0:00:13]} 39. c4 {[%emt 0:00:50]} Rh1 {[%emt 0:00:21]} 40. Nf1 {[%emt 0:00:00]} b6 {[%emt 0:00:00]} 41. g4 {[%emt 0:07:21]} Rg1 {[%emt 0:01:01]} 42. Ng3 {[%emt 0:02:30]} Rb1 {[%emt 0:00:30]} 43. b3 {[%emt 0:00:30]} Rb2+ {[%emt 0:00:30]} 44. Ke3 {[%emt 0:00:30]} Rxa2 {[%emt 0:00:00]} 45. Nxe4 {[%emt 0:00:00]} Rb2 {[%emt 0:00:00]} 46. Nd2 {[%emt 0:01:00]} a5 {[%emt 0:00:30]} 47. f4 {[%emt 0:00:30]} b5 {[%emt 0:03:30]} 48. d5+ {[%emt 0:04:10]} Ke7 {[%emt 0:08:30]} 49. dxc6 {[%emt 0:03:37]} bxc4 $11 {[%emt 0:10:52]} 50. Nxc4 {[%emt 0:02:00]} Rxb3+ {[%emt 0:00:01]} 51. Kd4 {[%emt 0:04:59]} a4 {[%emt 0:00:07]} 52. f5 {[%emt 0:03:14]} a3 {[%emt 0:01:41]} 53. f6+ {[%emt 0:03:20]} Kxf6 {[%emt 0:00:02]} 54. c7 {[%emt 0:02:22]} a2 {[%emt 0:00:07]} 55. c8=Q {[%emt 0:00:21]} a1=Q+ {[%emt 0:00:06]} 56. Kc5 {[%emt 0:00:21]} Qg1+ {[%emt 0:02:12]} 57. Kc6 {[%emt 0:00:10]} Qg2+ {[%emt 0:00:34]} 58. Kc5 {[%emt 0:00:17]} Qf2+ {[%emt 0:01:01]} 59. Kc6 {[%emt 0:00:02]} Qf3+ {[%emt 0:00:17]} 60. Kc5 {[%emt 0:00:02]} Qf2+ {[%emt 0:09:15]} 61. Kc6 {[%emt 0:00:02]} Qg2+ {[%emt 0:01:24]} 62. Kc5 {[%emt 0:00:02]} Qf2+ {[%emt 0:01:09]} 1/2-1/2

[Event "25th Zadar Open 2018"]
[Site "Zadar"]
[Date "2018.12.22"]
[Round "9.12"]
[White "Spalir, Jernej"]
[Black "Ustianovich, Nazar"]
[Result "1/2-1/2"]
[ECO "D10"]
[WhiteElo "2336"]
[BlackElo "2383"]
[Annotator "NA"]
[PlyCount "57"]
[EventDate "2018.12.15"]
[EventType "swiss"]
[EventCountry "CRO"]
[SourceTitle "playchess.com"]
[Source "ChessBase"]
[SourceQuality "1"]
[TimeControl "40/5400+30:1800+30"]

{[%evp 10,48,31,22,32767,32767,32767,32767,32767,14,27,19,37,35,39,30,31,27,23,21,27,33,35,30,34,27,33,9,27,12,8,7,2,32767,32767,32767,32767,32767,32767,32767,0]} 1. d4 {[%emt 0:01:30]} d5 {[%emt 0:01:30]} 2. c4 {[%emt 0:00:30]} c6 {[%emt 0:01:30]} 3. cxd5 {[%emt 0:00:30]} cxd5 {[%emt 0:00:00]} 4. Bf4 {[%emt 0:00:30]} Nc6 {[%emt 0:00:00]} 5. e3 {[%emt 0:00:00]} Nf6 {[%emt 0:01:30]} 6. Nc3 {[%emt 0:00:00]} a6 {[%emt 0:03:30]} 7. Bd3 {[%emt 0:00:30]} Bg4 {[%emt 0:00:30]} 8. Nge2 {[%emt 0:00:30]} e6 {[%emt 0:00:00]} 9. O-O {[%emt 0:00:00]} Bxe2 {[%emt 0:03:00]} 10. Qxe2 {[%emt 0:01:00]} Bd6 {[%emt 0:00:30]} 11. Bg5 {[%emt 0:03:30]} Be7 {[%emt 0:05:30] D10: Slav Defence: 3 cxd5 (without early Nf3) and 3 Nc3} 12. Rac1 {[%emt 0:02:30] LiveBook: 11 Games} Nd7 {[%emt 0:05:30]} 13. Bxe7 {[%emt 0:01:30]} Qxe7 {[%emt 0:00:00]} 14. Na4 {[%emt 0:00:30]} O-O {[%emt 0:00:00]} 15. Nc5 {[%emt 0:00:30]} Nxc5 {[%emt 0:06:30]} 16. Rxc5 {[%emt 0:05:30]} Rfc8 {[%emt 0:00:30]} 17. Rfc1 {[%emt 0:01:30]} Qd7 $146 {[%emt 0:03:30]} 18. a3 {[%emt 0:02:30]} Ne7 {[%emt 0:08:30]} 19. b4 {[%emt 0:01:30]} g6 {[%emt 0:07:30]} 20. h4 {[%emt 0:04:30]} b6 {[%emt 0:07:30]} 21. Rxc8+ {[%emt 0:03:30]} Rxc8 {[%emt 0:06:30]} 22. Rxc8+ {[%emt 0:00:30]} Qxc8 {[%emt 0:00:30]} 23. Bxa6 {[%emt 0:00:30]} Qc1+ {[%emt 0:00:30]} 24. Kh2 {[%emt 0:00:00]} Nf5 $11 {[%emt 0:20:26]} 25. Bd3 {[%emt 0:21:00]} Nd6 {[%emt 0:02:10]} 26. a4 {[%emt 0:02:30]} Qa3 {[%emt 0:01:55]} 27. a5 {[%emt 0:00:30]} bxa5 {[%emt 0:00:04]} 28. bxa5 {[%emt 0:00:30]} Qxa5 {[%emt 0:00:01]} 29. h5 {[%emt 0:00:30]} 1/2-1/2

[Event "25th Zadar Open 2018"]
[Site "Zadar"]
[Date "2018.12.22"]
[Round "9.13"]
[White "Paszewski, Mateusz"]
[Black "Krstulovic, Alex"]
[Result "1/2-1/2"]
[ECO "B23"]
[WhiteElo "2342"]
[BlackElo "2313"]
[Annotator "NA"]
[PlyCount "94"]
[EventDate "2018.12.15"]
[EventType "swiss"]
[EventCountry "CRO"]
[SourceTitle "playchess.com"]
[Source "ChessBase"]
[SourceQuality "1"]
[TimeControl "40/5400+30:1800+30"]

1. e4 {[%emt 0:00:30]} c5 {[%emt 0:00:30]} 2. Nc3 {[%emt 0:02:30]} d6 {[%emt 0:00:00]} 3. d4 {[%emt 0:00:00]} cxd4 {[%emt 0:01:00] B23: Closed Sicilian: Lines without g3} 4. Qxd4 {[%emt 0:00:00]} Nf6 {[%emt 0:03:30]} (4... Nc6 5. Qd2 g6 6. b3 Bh6 7. f4 f5 8. Bb2 Nf6 9. Bd3 Qa5 10. exf5 Bxf5 11. Nge2 Bxd3 12. Qxd3 {1-0 (42) Nakamura,H (2769)-Grischuk,A (2766) Leuven 2018}) 5. b3 {[%emt 0:00:30]} (5. Bg5 $14) 5... Nc6 {[%emt 0:02:30]} 6. Qd2 {[%emt 0:00:30]} g6 {[%emt 0:02:30]} 7. Bb2 {[%emt 0:01:30]} Bg7 {[%emt 0:00:30] LiveBook: 10 Games} 8. O-O-O {[%emt 0:00:30]} O-O {[%emt 0:12:30]} 9. f3 {[%emt 0:00:00]} Qa5 {[%emt 0:07:30]} 10. Kb1 {[%emt 0:03:00]} Bd7 {[%emt 0:03:30]} 11. g4 {[%emt 0:11:30]} Rfc8 $146 {[%emt 0:06:30]} 12. Nge2 {[%emt 0:05:30]} b5 {[%emt 0:07:30]} 13. g5 {[%emt 0:15:30]} Nh5 {[%emt 0:01:30]} 14. Nd5 {[%emt 0:09:30]} Qxd2 {[%emt 0:21:30]} 15. Rxd2 {[%emt 0:00:30]} Be6 {[%emt 0:05:30]} 16. Ng3 {[%emt 0:06:30]} Nxg3 {[%emt 0:04:35]} 17. hxg3 {[%emt 0:00:00]} Bxb2 {[%emt 0:00:05]} 18. Kxb2 {[%emt 0:00:00]} Rab8 {[%emt 0:00:38]} 19. Rdh2 {[%emt 0:04:30]} h5 {[%emt 0:00:09]} 20. Nf4 {[%emt 0:04:30]} Nd4 {[%emt 0:02:26]} 21. Rf2 {[%emt 0:03:30]} Rc5 {[%emt 0:03:07]} 22. c3 {[%emt 0:08:30]} Nc6 {[%emt 0:00:17]} 23. Nxe6 {[%emt 0:00:30]} fxe6 {[%emt 0:00:07]} 24. f4 {[%emt 0:00:00]} b4 {[%emt 0:02:37]} 25. c4 {[%emt 0:01:00]} Rf8 {[%emt 0:02:44]} 26. Bh3 {[%emt 0:04:00]} Rxg5 {[%emt 0:03:29]} 27. Rg2 {[%emt 0:00:17]} Rc5 {[%emt 0:00:33]} 28. Bxe6+ {[%emt 0:00:05]} Kg7 {[%emt 0:00:05]} 29. Kc1 {[%emt 0:08:05]} Nd4 {[%emt 0:02:39]} 30. Bd7 {[%emt 0:02:37]} e5 {[%emt 0:01:39]} 31. Kd2 {[%emt 0:01:01] [#]} ({White should play} 31. Rd2) 31... h4 {[%emt 0:02:57]} ({Worse is} 31... exf4 32. gxf4 Rc7 33. Ke3 $14) (31... Rf7 $1 $17 {[%cal Rf7d7]} 32. Ba4 a6) 32. Ke3 {[%emt 0:05:22]} Rc7 {[%emt 0:00:27]} 33. Bg4 {[%emt 0:01:16]} hxg3 {[%emt 0:00:11]} 34. fxe5 {[%emt 0:00:03]} dxe5 {[%emt 0:00:23]} 35. Rxg3 {[%emt 0:00:01]} Rh8 {[%emt 0:01:05]} 36. Rhg1 {[%emt 0:03:03]} Rc6 {[%emt 0:00:44]} 37. Bd1 {[%emt 0:01:32]} Rh2 {[%emt 0:00:30]} 38. R3g2 {[%emt 0:00:10]} Rh3+ {[%emt 0:00:17]} 39. Rg3 {[%emt 0:00:02]} Rh2 {[%emt 0:00:03]} 40. R3g2 {[%emt 0:00:00]} Rh3+ {[%emt 0:00:00]} 41. Rg3 $15 {[%emt 0:02:26]} Rxg3+ {[%emt 0:10:13]} 42. Rxg3 {[%emt 0:00:30]} Rd6 {[%emt 0:00:00]} 43. Rg1 {[%emt 0:03:30]} Ne6 {[%emt 0:02:00]} 44. Bc2 {[%emt 0:00:30]} Nc5 {[%emt 0:01:30]} 45. Rg2 {[%emt 0:02:30]} Ne6 {[%emt 0:03:02]} 46. Rg1 {[%emt 0:01:30]} Ra6 {[%emt 0:01:03]} 47. Bb1 {[%emt 0:00:30]} Rd6 {[%emt 0:06:30]} 1/2-1/2

[Event "25th Zadar Open 2018"]
[Site "Zadar"]
[Date "2018.12.22"]
[Round "9.14"]
[White "Muha, Miljenko"]
[Black "Tica, Sven"]
[Result "1/2-1/2"]
[ECO "D30"]
[WhiteElo "2334"]
[BlackElo "2439"]
[Annotator "RC"]
[PlyCount "97"]
[EventDate "2018.12.15"]
[EventType "swiss"]
[EventCountry "CRO"]
[SourceTitle "playchess.com"]
[Source "ChessBase"]
[SourceQuality "1"]
[TimeControl "40/5400+30:1800+30"]

1. d4 {[%emt 0:00:30]} Nf6 {[%emt 0:00:30]} 2. Nf3 {[%emt 0:00:30]} e6 {[%emt 0:00:00]} 3. c4 {[%emt 0:00:30]} d5 {[%emt 0:00:00]} 4. e3 {[%emt 0:00:00]} a6 {[%emt 0:00:30]} 5. b3 {[%emt 0:01:00]} b6 {[%emt 0:00:00]} 6. Bd3 {[%emt 0:00:30]} Bb7 {[%emt 0:00:00]} 7. O-O {[%emt 0:00:30]} Bd6 {[%emt 0:00:30]} 8. Bb2 {[%emt 0:00:30]} O-O {[%emt 0:00:00]} 9. Nbd2 {[%emt 0:00:30]} Nbd7 {[%emt 0:01:00]} 10. Rc1 {[%emt 0:01:30]} Ne4 {[%emt 0:04:30]} 11. Qc2 {[%emt 0:01:30]} f5 {[%emt 0:02:30]} 12. cxd5 {[%emt 0:06:30]} exd5 {[%emt 0:01:30]} 13. Ne5 {[%emt 0:01:30]} Qe7 {[%emt 0:08:30]} 14. Nc6 {[%emt 0:07:30]} Bxc6 {[%emt 0:07:30]} 15. Bxe4 {[%emt 0:02:30]} fxe4 {[%emt 0:00:30]} 16. Qxc6 {[%emt 0:00:00]} Qe6 {[%emt 0:00:00]} 17. Ba3 {[%emt 0:13:00]} Nc5 {[%emt 0:06:00]} 18. g3 {[%emt 0:01:30]} Nd3 {[%emt 0:01:30]} 19. Rc3 {[%emt 0:00:30]} b5 {[%emt 0:13:30]} 20. Bc5 {[%emt 0:05:30]} b4 {[%emt 0:04:30]} 21. Rxd3 {[%emt 0:10:30]} exd3 {[%emt 0:00:30]} 22. Bxb4 {[%emt 0:00:00]} Rfe8 {[%emt 0:02:30]} 23. Ba5 {[%emt 0:01:00]} g5 {[%emt 0:06:30]} 24. Nb1 {[%emt 0:02:30]} Bf8 {[%emt 0:07:30]} 25. Qxe6+ {[%emt 0:14:30]} Rxe6 {[%emt 0:00:30]} 26. Rd1 {[%emt 0:00:30]} Rc6 {[%emt 0:04:30]} 27. Nc3 {[%emt 0:00:30]} Rb8 {[%emt 0:00:00]} 28. Rxd3 {[%emt 0:02:30]} g4 {[%emt 0:00:00]} 29. Kg2 {[%emt 0:03:30]} Kf7 {[%emt 0:00:30]} 30. Rd1 {[%emt 0:02:30]} Ba3 {[%emt 0:05:30]} 31. h3 {[%emt 0:01:30]} gxh3+ {[%emt 0:01:30]} 32. Kxh3 {[%emt 0:00:38]} Bb2 {[%emt 0:00:30]} 33. Na4 {[%emt 0:01:36]} Rc2 {[%emt 0:01:30]} 34. Rd2 {[%emt 0:06:24]} Rxd2 {[%emt 0:00:00]} 35. Bxd2 {[%emt 0:00:36]} Ba3 {[%emt 0:00:00]} 36. Kg2 {[%emt 0:00:45]} Ke6 {[%emt 0:01:30]} 37. Kf3 {[%emt 0:00:27]} h5 {[%emt 0:02:30]} 38. Ke2 {[%emt 0:01:20]} Bd6 {[%emt 0:01:42]} 39. Nb2 {[%emt 0:01:54]} Kf5 {[%emt 0:01:26]} 40. Nd3 {[%emt 0:00:00]} c6 {[%emt 0:00:00]} 41. Ne1 {[%emt 0:12:20]} Kg4 {[%emt 0:05:52]} 42. Nd3 {[%emt 0:06:30]} Rb7 {[%emt 0:02:30]} 43. Be1 {[%emt 0:02:30]} Kf5 {[%emt 0:02:30]} 44. Kf3 {[%emt 0:00:30]} Rb8 {[%emt 0:01:30]} 45. Bd2 {[%emt 0:00:30]} Rb5 {[%emt 0:00:30]} 46. Bc3 {[%emt 0:01:52]} Rb8 {[%emt 0:01:30]} 47. Bd2 {[%emt 0:01:01]} Rb5 {[%emt 0:00:30]} 48. Bc3 {[%emt 0:00:06]} Rb8 {[%emt 0:00:30]} 49. Bd2 {[%emt 0:01:25]} 1/2-1/2